Workbook

Sheet ATIVOS (AÇÕES)
B3: Carteira de Ações
D6: Como está atualmente | J6: Como gostaria que retornasse
B10: Carteira Atual | D10: =PlanAtivos_AtivosUnicos -> 5 | H10: Carteira Atual | J10: 3
B11: Ativo | C11: Qtde (Lotes) | D11: Lote 1 | E11: Valor Menor | H11: Ativo | I11: Qtde (Lotes) | J11: Lote 1 | K11: Valor Menor
B12: =IFERROR(IF(INDEX(TB_MovimentaçãodeAtivos[Ativo],MATCH(0,COUNTIF(TB_MovimentaçãodeAtivos[Ativo],"<"&TB_MovimentaçãodeAtivos[Ativo])-SUM(COUNTIF(TB_MovimentaçãodeAtivos[Ativo],$B$11:B11)),0))=0,"",INDEX(TB_MovimentaçãodeAtivos[Ativo],MATCH(0,COUNTIF(TB_MovimentaçãodeAtivos[Ativo],"<"&TB_MovimentaçãodeAtivos[Ativo])-SUM(COUNTIF(TB_MovimentaçãodeAtivos[Ativo],$B$11:B11)),0))),"") -> CIEL3 | C12: =COUNTIF(TB_MovimentaçãodeAtivos[Ativo],TB_CarteiraAtual[[#This Row],[Ativo]]) -> 3 | D12: =IFERROR(INDEX(TB_MovimentaçãodeAtivos[Qtde],MATCH(MAX(IF(TB_MovimentaçãodeAtivos[Ativo]=TB_CarteiraAtual[[#This Row],[Ativo]],IF(TB_MovimentaçãodeAtivos[Vlr Entrada]=TB_CarteiraAtual[[#This Row],[Valor Menor]],TB_MovimentaçãodeAtivos[Qtde]))),TB_MovimentaçãodeAtivos[Qtde],0)),0) -> 0 | E12: =IFERROR(INDEX(TB_MovimentaçãodeAtivos[Vlr Entrada],MATCH(MIN(IF(TB_MovimentaçãodeAtivos[Ativo]=TB_CarteiraAtual[[#This Row],[Ativo]],TB_MovimentaçãodeAtivos[Vlr Entrada])),TB_MovimentaçãodeAtivos[Vlr Entrada],0)),0) -> 0 | H12: CIEL3 | I12: 2 | J12: 500 | K12: 3.56
B13: =IFERROR(IF(INDEX(TB_MovimentaçãodeAtivos[Ativo],MATCH(0,COUNTIF(TB_MovimentaçãodeAtivos[Ativo],"<"&TB_MovimentaçãodeAtivos[Ativo])-SUM(COUNTIF(TB_MovimentaçãodeAtivos[Ativo],$B$11:B12)),0))=0,"",INDEX(TB_MovimentaçãodeAtivos[Ativo],MATCH(0,COUNTIF(TB_MovimentaçãodeAtivos[Ativo],"<"&TB_MovimentaçãodeAtivos[Ativo])-SUM(COUNTIF(TB_MovimentaçãodeAtivos[Ativo],$B$11:B12)),0))),"") -> IRBR3 | C13: =COUNTIF(TB_MovimentaçãodeAtivos[Ativo],TB_CarteiraAtual[[#This Row],[Ativo]]) -> 1 | D13: =IFERROR(INDEX(TB_MovimentaçãodeAtivos[Qtde],MATCH(MAX(IF(TB_MovimentaçãodeAtivos[Ativo]=TB_CarteiraAtual[[#This Row],[Ativo]],IF(TB_MovimentaçãodeAtivos[Vlr Entrada]=TB_CarteiraAtual[[#This Row],[Valor Menor]],TB_MovimentaçãodeAtivos[Qtde]))),TB_MovimentaçãodeAtivos[Qtde],0)),0) -> 0 | E13: =IFERROR(INDEX(TB_MovimentaçãodeAtivos[Vlr Entrada],MATCH(MIN(IF(TB_MovimentaçãodeAtivos[Ativo]=TB_CarteiraAtual[[#This Row],[Ativo]],TB_MovimentaçãodeAtivos[Vlr Entrada])),TB_MovimentaçãodeAtivos[Vlr Entrada],0)),0) -> 0 | H13: PETR4 | I13: 1 | J13: 200 | K13: 24.8
B14: =IFERROR(IF(INDEX(TB_MovimentaçãodeAtivos[Ativo],MATCH(0,COUNTIF(TB_MovimentaçãodeAtivos[Ativo],"<"&TB_MovimentaçãodeAtivos[Ativo])-SUM(COUNTIF(TB_MovimentaçãodeAtivos[Ativo],$B$11:B13)),0))=0,"",INDEX(TB_MovimentaçãodeAtivos[Ativo],MATCH(0,COUNTIF(TB_MovimentaçãodeAtivos[Ativo],"<"&TB_MovimentaçãodeAtivos[Ativo])-SUM(COUNTIF(TB_MovimentaçãodeAtivos[Ativo],$B$11:B13)),0))),"") -> NTCO2 | C14: =COUNTIF(TB_MovimentaçãodeAtivos[Ativo],TB_CarteiraAtual[[#This Row],[Ativo]]) -> 2 | D14: =IFERROR(INDEX(TB_MovimentaçãodeAtivos[Qtde],MATCH(MAX(IF(TB_MovimentaçãodeAtivos[Ativo]=TB_CarteiraAtual[[#This Row],[Ativo]],IF(TB_MovimentaçãodeAtivos[Vlr Entrada]=TB_CarteiraAtual[[#This Row],[Valor Menor]],TB_MovimentaçãodeAtivos[Qtde]))),TB_MovimentaçãodeAtivos[Qtde],0)),0) -> 0 | E14: =IFERROR(INDEX(TB_MovimentaçãodeAtivos[Vlr Entrada],MATCH(MIN(IF(TB_MovimentaçãodeAtivos[Ativo]=TB_CarteiraAtual[[#This Row],[Ativo]],TB_MovimentaçãodeAtivos[Vlr Entrada])),TB_MovimentaçãodeAtivos[Vlr Entrada],0)),0) -> 0 | H14: VIVA3 | I14: 1 | J14: 300 | K14: 25.9
B15: =IFERROR(IF(INDEX(TB_MovimentaçãodeAtivos[Ativo],MATCH(0,COUNTIF(TB_MovimentaçãodeAtivos[Ativo],"<"&TB_MovimentaçãodeAtivos[Ativo])-SUM(COUNTIF(TB_MovimentaçãodeAtivos[Ativo],$B$11:B14)),0))=0,"",INDEX(TB_MovimentaçãodeAtivos[Ativo],MATCH(0,COUNTIF(TB_MovimentaçãodeAtivos[Ativo],"<"&TB_MovimentaçãodeAtivos[Ativo])-SUM(COUNTIF(TB_MovimentaçãodeAtivos[Ativo],$B$11:B14)),0))),"") -> PETR4 | C15: =COUNTIF(TB_MovimentaçãodeAtivos[Ativo],TB_CarteiraAtual[[#This Row],[Ativo]]) -> 2 | D15: =IFERROR(INDEX(TB_MovimentaçãodeAtivos[Qtde],MATCH(MAX(IF(TB_MovimentaçãodeAtivos[Ativo]=TB_CarteiraAtual[[#This Row],[Ativo]],IF(TB_MovimentaçãodeAtivos[Vlr Entrada]=TB_CarteiraAtual[[#This Row],[Valor Menor]],TB_MovimentaçãodeAtivos[Qtde]))),TB_MovimentaçãodeAtivos[Qtde],0)),0) -> 0 | E15: =IFERROR(INDEX(TB_MovimentaçãodeAtivos[Vlr Entrada],MATCH(MIN(IF(TB_MovimentaçãodeAtivos[Ativo]=TB_CarteiraAtual[[#This Row],[Ativo]],TB_MovimentaçãodeAtivos[Vlr Entrada])),TB_MovimentaçãodeAtivos[Vlr Entrada],0)),0) -> 0
B16: =IFERROR(IF(INDEX(TB_MovimentaçãodeAtivos[Ativo],MATCH(0,COUNTIF(TB_MovimentaçãodeAtivos[Ativo],"<"&TB_MovimentaçãodeAtivos[Ativo])-SUM(COUNTIF(TB_MovimentaçãodeAtivos[Ativo],$B$11:B15)),0))=0,"",INDEX(TB_MovimentaçãodeAtivos[Ativo],MATCH(0,COUNTIF(TB_MovimentaçãodeAtivos[Ativo],"<"&TB_MovimentaçãodeAtivos[Ativo])-SUM(COUNTIF(TB_MovimentaçãodeAtivos[Ativo],$B$11:B15)),0))),"") -> VIVA3 | C16: =COUNTIF(TB_MovimentaçãodeAtivos[Ativo],TB_CarteiraAtual[[#This Row],[Ativo]]) -> 1 | D16: =IFERROR(INDEX(TB_MovimentaçãodeAtivos[Qtde],MATCH(MAX(IF(TB_MovimentaçãodeAtivos[Ativo]=TB_CarteiraAtual[[#This Row],[Ativo]],IF(TB_MovimentaçãodeAtivos[Vlr Entrada]=TB_CarteiraAtual[[#This Row],[Valor Menor]],TB_MovimentaçãodeAtivos[Qtde]))),TB_MovimentaçãodeAtivos[Qtde],0)),0) -> 0 | E16: =IFERROR(INDEX(TB_MovimentaçãodeAtivos[Vlr Entrada],MATCH(MIN(IF(TB_MovimentaçãodeAtivos[Ativo]=TB_CarteiraAtual[[#This Row],[Ativo]],TB_MovimentaçãodeAtivos[Vlr Entrada])),TB_MovimentaçãodeAtivos[Vlr Entrada],0)),0) -> 0
B17: =IFERROR(IF(INDEX(TB_MovimentaçãodeAtivos[Ativo],MATCH(0,COUNTIF(TB_MovimentaçãodeAtivos[Ativo],"<"&TB_MovimentaçãodeAtivos[Ativo])-SUM(COUNTIF(TB_MovimentaçãodeAtivos[Ativo],$B$11:B16)),0))=0,"",INDEX(TB_MovimentaçãodeAtivos[Ativo],MATCH(0,COUNTIF(TB_MovimentaçãodeAtivos[Ativo],"<"&TB_MovimentaçãodeAtivos[Ativo])-SUM(COUNTIF(TB_MovimentaçãodeAtivos[Ativo],$B$11:B16)),0))),"") ->  | C17: =COUNTIF(TB_MovimentaçãodeAtivos[Ativo],TB_CarteiraAtual[[#This Row],[Ativo]]) -> 0 | D17: =IFERROR(INDEX(TB_MovimentaçãodeAtivos[Qtde],MATCH(MAX(IF(TB_MovimentaçãodeAtivos[Ativo]=TB_CarteiraAtual[[#This Row],[Ativo]],IF(TB_MovimentaçãodeAtivos[Vlr Entrada]=TB_CarteiraAtual[[#This Row],[Valor Menor]],TB_MovimentaçãodeAtivos[Qtde]))),TB_MovimentaçãodeAtivos[Qtde],0)),0) -> 0 | E17: =IFERROR(INDEX(TB_MovimentaçãodeAtivos[Vlr Entrada],MATCH(MIN(IF(TB_MovimentaçãodeAtivos[Ativo]=TB_CarteiraAtual[[#This Row],[Ativo]],TB_MovimentaçãodeAtivos[Vlr Entrada])),TB_MovimentaçãodeAtivos[Vlr Entrada],0)),0) -> 0
B18: =IFERROR(IF(INDEX(TB_MovimentaçãodeAtivos[Ativo],MATCH(0,COUNTIF(TB_MovimentaçãodeAtivos[Ativo],"<"&TB_MovimentaçãodeAtivos[Ativo])-SUM(COUNTIF(TB_MovimentaçãodeAtivos[Ativo],$B$11:B17)),0))=0,"",INDEX(TB_MovimentaçãodeAtivos[Ativo],MATCH(0,COUNTIF(TB_MovimentaçãodeAtivos[Ativo],"<"&TB_MovimentaçãodeAtivos[Ativo])-SUM(COUNTIF(TB_MovimentaçãodeAtivos[Ativo],$B$11:B17)),0))),"") ->  | C18: =COUNTIF(TB_MovimentaçãodeAtivos[Ativo],TB_CarteiraAtual[[#This Row],[Ativo]]) -> 0 | D18: =IFERROR(INDEX(TB_MovimentaçãodeAtivos[Qtde],MATCH(MAX(IF(TB_MovimentaçãodeAtivos[Ativo]=TB_CarteiraAtual[[#This Row],[Ativo]],IF(TB_MovimentaçãodeAtivos[Vlr Entrada]=TB_CarteiraAtual[[#This Row],[Valor Menor]],TB_MovimentaçãodeAtivos[Qtde]))),TB_MovimentaçãodeAtivos[Qtde],0)),0) -> 0 | E18: =IFERROR(INDEX(TB_MovimentaçãodeAtivos[Vlr Entrada],MATCH(MIN(IF(TB_MovimentaçãodeAtivos[Ativo]=TB_CarteiraAtual[[#This Row],[Ativo]],TB_MovimentaçãodeAtivos[Vlr Entrada])),TB_MovimentaçãodeAtivos[Vlr Entrada],0)),0) -> 0
B19: =IFERROR(IF(INDEX(TB_MovimentaçãodeAtivos[Ativo],MATCH(0,COUNTIF(TB_MovimentaçãodeAtivos[Ativo],"<"&TB_MovimentaçãodeAtivos[Ativo])-SUM(COUNTIF(TB_MovimentaçãodeAtivos[Ativo],$B$11:B18)),0))=0,"",INDEX(TB_MovimentaçãodeAtivos[Ativo],MATCH(0,COUNTIF(TB_MovimentaçãodeAtivos[Ativo],"<"&TB_MovimentaçãodeAtivos[Ativo])-SUM(COUNTIF(TB_MovimentaçãodeAtivos[Ativo],$B$11:B18)),0))),"") ->  | C19: =COUNTIF(TB_MovimentaçãodeAtivos[Ativo],TB_CarteiraAtual[[#This Row],[Ativo]]) -> 0 | D19: =IFERROR(INDEX(TB_MovimentaçãodeAtivos[Qtde],MATCH(MAX(IF(TB_MovimentaçãodeAtivos[Ativo]=TB_CarteiraAtual[[#This Row],[Ativo]],IF(TB_MovimentaçãodeAtivos[Vlr Entrada]=TB_CarteiraAtual[[#This Row],[Valor Menor]],TB_MovimentaçãodeAtivos[Qtde]))),TB_MovimentaçãodeAtivos[Qtde],0)),0) -> 0 | E19: =IFERROR(INDEX(TB_MovimentaçãodeAtivos[Vlr Entrada],MATCH(MIN(IF(TB_MovimentaçãodeAtivos[Ativo]=TB_CarteiraAtual[[#This Row],[Ativo]],TB_MovimentaçãodeAtivos[Vlr Entrada])),TB_MovimentaçãodeAtivos[Vlr Entrada],0)),0) -> 0
B21: Qtde de Ativos Únicos: | D21: =SUM(IFERROR(1/COUNTIF(TB_MovimentaçãodeAtivos[Ativo],TB_MovimentaçãodeAtivos[Ativo]),0)) -> 5
B22: ID | C22: Data | D22: Ativo | E22: C / V | F22: Qtde | G22: Vlr Entrada | H22: Custo (E) | I22: Total | J22: Estratégia | K22: Alvo | L22: Loss Máx. | M22: Data - Saída | N22: Valor - Saída | O22: Custo (S) | P22: Total (S) | Q22: Resultado (%) | R22: Resultado ($) | S22: Tempo de Operação | T22: Coluna1
B23: =IFERROR(INDEX(#REF!,SMALL(IF(((#REF!="Pago")*(#REF!=#REF!)*(#REF!=AnoReferencia_Matriz)),ROW(#REF!)-ROW(#REF!)),ROWS($1:1))),"") ->  | C23: 44166 | D23: PETR4 | E23: C | F23: 300 | G23: 25.64 | H23: 2.9 | I23: =TB_MovimentaçãodeAtivos[[#This Row],[Qtde]]*TB_MovimentaçãodeAtivos[[#This Row],[Vlr Entrada]] -> 7692 | K23: =TB_MovimentaçãodeAtivos[[#This Row],[Vlr Entrada]]*1.05 -> 26.922 | L23: =TB_MovimentaçãodeAtivos[[#This Row],[Vlr Entrada]]*0.95 -> 24.358 | M23: 44168 | N23: 26.2 | P23: =TB_MovimentaçãodeAtivos[[#This Row],[Qtde]]*TB_MovimentaçãodeAtivos[[#This Row],[Valor - Saída]] -> 7860 | S23: =IF(OR(TB_MovimentaçãodeAtivos[[#This Row],[Data]]="",TB_MovimentaçãodeAtivos[[#This Row],[Data]]="-"),"-",IF(TB_MovimentaçãodeAtivos[[#This Row],[Data - Saída]]=TB_MovimentaçãodeAtivos[[#This Row],[Data]],"-",IFERROR(IF(DATEDIF(TB_MovimentaçãodeAtivos[[#This Row],[Data]],TB_MovimentaçãodeAtivos[[#This Row],[Data - Saída]],"y")=0,"",DATEDIF(TB_MovimentaçãodeAtivos[[#This Row],[Data]],TB_MovimentaçãodeAtivos[[#This Row],[Data - Saída]],"y")&" "&IF(DATEDIF(TB_MovimentaçãodeAtivos[[#This Row],[Data]],TB_MovimentaçãodeAtivos[[#This Row],[Data - Saída]],"y")>1,"anos","ano"))&IF(AND(DATEDIF(TB_MovimentaçãodeAtivos[[#This Row],[Data]],TB_MovimentaçãodeAtivos[[#This Row],[Data - Saída]],"y")>0,DATEDIF(TB_MovimentaçãodeAtivos[[#This Row],[Data]],TB_MovimentaçãodeAtivos[[#This Row],[Data - Saída]],"ym")>0),IF(DATEDIF(TB_MovimentaçãodeAtivos[[#This Row],[Data]],TB_MovimentaçãodeAtivos[[#This Row],[Data - Saída]],"md")>0,", "," e "),"")&IF(DATEDIF(TB_MovimentaçãodeAtivos[[#This Row],[Data]],TB_MovimentaçãodeAtivos[[#This Row],[Data - Saída]],"ym")=0,"",DATEDIF(TB_MovimentaçãodeAtivos[[#This Row],[Data]],TB_MovimentaçãodeAtivos[[#This Row],[Data - Saída]],"ym")&" "&IF(DATEDIF(TB_MovimentaçãodeAtivos[[#This Row],[Data]],TB_MovimentaçãodeAtivos[[#This Row],[Data - Saída]],"ym")>1,"meses","mês"))&IF(AND(OR(DATEDIF(TB_MovimentaçãodeAtivos[[#This Row],[Data]],TB_MovimentaçãodeAtivos[[#This Row],[Data - Saída]],"y")>0,DATEDIF(TB_MovimentaçãodeAtivos[[#This Row],[Data]],TB_MovimentaçãodeAtivos[[#This Row],[Data - Saída]],"ym")>0),DATEDIF(TB_MovimentaçãodeAtivos[[#This Row],[Data]],TB_MovimentaçãodeAtivos[[#This Row],[Data - Saída]],"md")>0)," e ","")&IF(DATEDIF(TB_MovimentaçãodeAtivos[[#This Row],[Data]],TB_MovimentaçãodeAtivos[[#This Row],[Data - Saída]],"md")=0,"",DATEDIF(TB_MovimentaçãodeAtivos[[#This Row],[Data]],TB_MovimentaçãodeAtivos[[#This Row],[Data - Saída]],"md")&" "&IF(DATEDIF(TB_MovimentaçãodeAtivos[[#This Row],[Data]],TB_MovimentaçãodeAtivos[[#This Row],[Data - Saída]],"md")>1,"dias","dia")),"-"))) -> 2 dias
B24: =IFERROR(INDEX(#REF!,SMALL(IF(((#REF!="Pago")*(#REF!=#REF!)*(#REF!=AnoReferencia_Matriz)),ROW(#REF!)-ROW(#REF!)),ROWS($1:2))),"") ->  | C24: 44145 | D24: PETR4 | E24: V | F24: 200 | G24: 24.8 | H24: 2.9 | I24: =TB_MovimentaçãodeAtivos[[#This Row],[Qtde]]*TB_MovimentaçãodeAtivos[[#This Row],[Vlr Entrada]] -> 4960 | K24: =TB_MovimentaçãodeAtivos[[#This Row],[Vlr Entrada]]*1.05 -> 26.04 | L24: =TB_MovimentaçãodeAtivos[[#This Row],[Vlr Entrada]]*0.95 -> 23.56 | P24: =TB_MovimentaçãodeAtivos[[#This Row],[Qtde]]*TB_MovimentaçãodeAtivos[[#This Row],[Valor - Saída]] -> 0 | S24: =IF(OR(TB_MovimentaçãodeAtivos[[#This Row],[Data]]="",TB_MovimentaçãodeAtivos[[#This Row],[Data]]="-"),"-",IF(TB_MovimentaçãodeAtivos[[#This Row],[Data - Saída]]=TB_MovimentaçãodeAtivos[[#This Row],[Data]],"-",IFERROR(IF(DATEDIF(TB_MovimentaçãodeAtivos[[#This Row],[Data]],TB_MovimentaçãodeAtivos[[#This Row],[Data - Saída]],"y")=0,"",DATEDIF(TB_MovimentaçãodeAtivos[[#This Row],[Data]],TB_MovimentaçãodeAtivos[[#This Row],[Data - Saída]],"y")&" "&IF(DATEDIF(TB_MovimentaçãodeAtivos[[#This Row],[Data]],TB_MovimentaçãodeAtivos[[#This Row],[Data - Saída]],"y")>1,"anos","ano"))&IF(AND(DATEDIF(TB_MovimentaçãodeAtivos[[#This Row],[Data]],TB_MovimentaçãodeAtivos[[#This Row],[Data - Saída]],"y")>0,DATEDIF(TB_MovimentaçãodeAtivos[[#This Row],[Data]],TB_MovimentaçãodeAtivos[[#This Row],[Data - Saída]],"ym")>0),IF(DATEDIF(TB_MovimentaçãodeAtivos[[#This Row],[Data]],TB_MovimentaçãodeAtivos[[#This Row],[Data - Saída]],"md")>0,", "," e "),"")&IF(DATEDIF(TB_MovimentaçãodeAtivos[[#This Row],[Data]],TB_MovimentaçãodeAtivos[[#This Row],[Data - Saída]],"ym")=0,"",DATEDIF(TB_MovimentaçãodeAtivos[[#This Row],[Data]],TB_MovimentaçãodeAtivos[[#This Row],[Data - Saída]],"ym")&" "&IF(DATEDIF(TB_MovimentaçãodeAtivos[[#This Row],[Data]],TB_MovimentaçãodeAtivos[[#This Row],[Data - Saída]],"ym")>1,"meses","mês"))&IF(AND(OR(DATEDIF(TB_MovimentaçãodeAtivos[[#This Row],[Data]],TB_MovimentaçãodeAtivos[[#This Row],[Data - Saída]],"y")>0,DATEDIF(TB_MovimentaçãodeAtivos[[#This Row],[Data]],TB_MovimentaçãodeAtivos[[#This Row],[Data - Saída]],"ym")>0),DATEDIF(TB_MovimentaçãodeAtivos[[#This Row],[Data]],TB_MovimentaçãodeAtivos[[#This Row],[Data - Saída]],"md")>0)," e ","")&IF(DATEDIF(TB_MovimentaçãodeAtivos[[#This Row],[Data]],TB_MovimentaçãodeAtivos[[#This Row],[Data - Saída]],"md")=0,"",DATEDIF(TB_MovimentaçãodeAtivos[[#This Row],[Data]],TB_MovimentaçãodeAtivos[[#This Row],[Data - Saída]],"md")&" "&IF(DATEDIF(TB_MovimentaçãodeAtivos[[#This Row],[Data]],TB_MovimentaçãodeAtivos[[#This Row],[Data - Saída]],"md")>1,"dias","dia")),"-"))) -> -
B25: =IFERROR(INDEX(#REF!,SMALL(IF(((#REF!="Pago")*(#REF!=#REF!)*(#REF!=AnoReferencia_Matriz)),ROW(#REF!)-ROW(#REF!)),ROWS($1:6))),"") ->  | C25: 44150 | D25: CIEL3 | E25: C | F25: 500 | G25: 3.56 | H25: 2.9 | I25: =TB_MovimentaçãodeAtivos[[#This Row],[Qtde]]*TB_MovimentaçãodeAtivos[[#This Row],[Vlr Entrada]] -> 1780 | K25: =TB_MovimentaçãodeAtivos[[#This Row],[Vlr Entrada]]*1.05 -> 3.738 | L25: =TB_MovimentaçãodeAtivos[[#This Row],[Vlr Entrada]]*0.95 -> 3.382 | P25: =TB_MovimentaçãodeAtivos[[#This Row],[Qtde]]*TB_MovimentaçãodeAtivos[[#This Row],[Valor - Saída]] -> 0 | S25: =IF(OR(TB_MovimentaçãodeAtivos[[#This Row],[Data]]="",TB_MovimentaçãodeAtivos[[#This Row],[Data]]="-"),"-",IF(TB_MovimentaçãodeAtivos[[#This Row],[Data - Saída]]=TB_MovimentaçãodeAtivos[[#This Row],[Data]],"-",IFERROR(IF(DATEDIF(TB_MovimentaçãodeAtivos[[#This Row],[Data]],TB_MovimentaçãodeAtivos[[#This Row],[Data - Saída]],"y")=0,"",DATEDIF(TB_MovimentaçãodeAtivos[[#This Row],[Data]],TB_MovimentaçãodeAtivos[[#This Row],[Data - Saída]],"y")&" "&IF(DATEDIF(TB_MovimentaçãodeAtivos[[#This Row],[Data]],TB_MovimentaçãodeAtivos[[#This Row],[Data - Saída]],"y")>1,"anos","ano"))&IF(AND(DATEDIF(TB_MovimentaçãodeAtivos[[#This Row],[Data]],TB_MovimentaçãodeAtivos[[#This Row],[Data - Saída]],"y")>0,DATEDIF(TB_MovimentaçãodeAtivos[[#This Row],[Data]],TB_MovimentaçãodeAtivos[[#This Row],[Data - Saída]],"ym")>0),IF(DATEDIF(TB_MovimentaçãodeAtivos[[#This Row],[Data]],TB_MovimentaçãodeAtivos[[#This Row],[Data - Saída]],"md")>0,", "," e "),"")&IF(DATEDIF(TB_MovimentaçãodeAtivos[[#This Row],[Data]],TB_MovimentaçãodeAtivos[[#This Row],[Data - Saída]],"ym")=0,"",DATEDIF(TB_MovimentaçãodeAtivos[[#This Row],[Data]],TB_MovimentaçãodeAtivos[[#This Row],[Data - Saída]],"ym")&" "&IF(DATEDIF(TB_MovimentaçãodeAtivos[[#This Row],[Data]],TB_MovimentaçãodeAtivos[[#This Row],[Data - Saída]],"ym")>1,"meses","mês"))&IF(AND(OR(DATEDIF(TB_MovimentaçãodeAtivos[[#This Row],[Data]],TB_MovimentaçãodeAtivos[[#This Row],[Data - Saída]],"y")>0,DATEDIF(TB_MovimentaçãodeAtivos[[#This Row],[Data]],TB_MovimentaçãodeAtivos[[#This Row],[Data - Saída]],"ym")>0),DATEDIF(TB_MovimentaçãodeAtivos[[#This Row],[Data]],TB_MovimentaçãodeAtivos[[#This Row],[Data - Saída]],"md")>0)," e ","")&IF(DATEDIF(TB_MovimentaçãodeAtivos[[#This Row],[Data]],TB_MovimentaçãodeAtivos[[#This Row],[Data - Saída]],"md")=0,"",DATEDIF(TB_MovimentaçãodeAtivos[[#This Row],[Data]],TB_MovimentaçãodeAtivos[[#This Row],[Data - Saída]],"md")&" "&IF(DATEDIF(TB_MovimentaçãodeAtivos[[#This Row],[Data]],TB_MovimentaçãodeAtivos[[#This Row],[Data - Saída]],"md")>1,"dias","dia")),"-"))) -> -
B26: =IFERROR(INDEX(#REF!,SMALL(IF(((#REF!="Pago")*(#REF!=#REF!)*(#REF!=AnoReferencia_Matriz)),ROW(#REF!)-ROW(#REF!)),ROWS($1:7))),"") ->  | C26: 44147 | D26: CIEL3 | E26: C | F26: 300 | G26: 3.52 | H26: 2.9 | I26: =TB_MovimentaçãodeAtivos[[#This Row],[Qtde]]*TB_MovimentaçãodeAtivos[[#This Row],[Vlr Entrada]] -> 1056 | K26: =TB_MovimentaçãodeAtivos[[#This Row],[Vlr Entrada]]*1.05 -> 3.696 | L26: =TB_MovimentaçãodeAtivos[[#This Row],[Vlr Entrada]]*0.95 -> 3.344 | M26: 44149 | N26: 3.7 | P26: =TB_MovimentaçãodeAtivos[[#This Row],[Qtde]]*TB_MovimentaçãodeAtivos[[#This Row],[Valor - Saída]] -> 1110 | S26: =IF(OR(TB_MovimentaçãodeAtivos[[#This Row],[Data]]="",TB_MovimentaçãodeAtivos[[#This Row],[Data]]="-"),"-",IF(TB_MovimentaçãodeAtivos[[#This Row],[Data - Saída]]=TB_MovimentaçãodeAtivos[[#This Row],[Data]],"-",IFERROR(IF(DATEDIF(TB_MovimentaçãodeAtivos[[#This Row],[Data]],TB_MovimentaçãodeAtivos[[#This Row],[Data - Saída]],"y")=0,"",DATEDIF(TB_MovimentaçãodeAtivos[[#This Row],[Data]],TB_MovimentaçãodeAtivos[[#This Row],[Data - Saída]],"y")&" "&IF(DATEDIF(TB_MovimentaçãodeAtivos[[#This Row],[Data]],TB_MovimentaçãodeAtivos[[#This Row],[Data - Saída]],"y")>1,"anos","ano"))&IF(AND(DATEDIF(TB_MovimentaçãodeAtivos[[#This Row],[Data]],TB_MovimentaçãodeAtivos[[#This Row],[Data - Saída]],"y")>0,DATEDIF(TB_MovimentaçãodeAtivos[[#This Row],[Data]],TB_MovimentaçãodeAtivos[[#This Row],[Data - Saída]],"ym")>0),IF(DATEDIF(TB_MovimentaçãodeAtivos[[#This Row],[Data]],TB_MovimentaçãodeAtivos[[#This Row],[Data - Saída]],"md")>0,", "," e "),"")&IF(DATEDIF(TB_MovimentaçãodeAtivos[[#This Row],[Data]],TB_MovimentaçãodeAtivos[[#This Row],[Data - Saída]],"ym")=0,"",DATEDIF(TB_MovimentaçãodeAtivos[[#This Row],[Data]],TB_MovimentaçãodeAtivos[[#This Row],[Data - Saída]],"ym")&" "&IF(DATEDIF(TB_MovimentaçãodeAtivos[[#This Row],[Data]],TB_MovimentaçãodeAtivos[[#This Row],[Data - Saída]],"ym")>1,"meses","mês"))&IF(AND(OR(DATEDIF(TB_MovimentaçãodeAtivos[[#This Row],[Data]],TB_MovimentaçãodeAtivos[[#This Row],[Data - Saída]],"y")>0,DATEDIF(TB_MovimentaçãodeAtivos[[#This Row],[Data]],TB_MovimentaçãodeAtivos[[#This Row],[Data - Saída]],"ym")>0),DATEDIF(TB_MovimentaçãodeAtivos[[#This Row],[Data]],TB_MovimentaçãodeAtivos[[#This Row],[Data - Saída]],"md")>0)," e ","")&IF(DATEDIF(TB_MovimentaçãodeAtivos[[#This Row],[Data]],TB_MovimentaçãodeAtivos[[#This Row],[Data - Saída]],"md")=0,"",DATEDIF(TB_MovimentaçãodeAtivos[[#This Row],[Data]],TB_MovimentaçãodeAtivos[[#This Row],[Data - Saída]],"md")&" "&IF(DATEDIF(TB_MovimentaçãodeAtivos[[#This Row],[Data]],TB_MovimentaçãodeAtivos[[#This Row],[Data - Saída]],"md")>1,"dias","dia")),"-"))) -> 2 dias
B27: =IFERROR(INDEX(#REF!,SMALL(IF(((#REF!="Pago")*(#REF!=#REF!)*(#REF!=AnoReferencia_Matriz)),ROW(#REF!)-ROW(#REF!)),ROWS($1:8))),"") ->  | C27: 44537 | D27: IRBR3 | I27: =TB_MovimentaçãodeAtivos[[#This Row],[Qtde]]*TB_MovimentaçãodeAtivos[[#This Row],[Vlr Entrada]] -> 0 | K27: =TB_MovimentaçãodeAtivos[[#This Row],[Vlr Entrada]]*1.05 -> 0 | L27: =TB_MovimentaçãodeAtivos[[#This Row],[Vlr Entrada]]*0.95 -> 0 | P27: =TB_MovimentaçãodeAtivos[[#This Row],[Qtde]]*TB_MovimentaçãodeAtivos[[#This Row],[Valor - Saída]] -> 0 | S27: =IF(OR(TB_MovimentaçãodeAtivos[[#This Row],[Data]]="",TB_MovimentaçãodeAtivos[[#This Row],[Data]]="-"),"-",IF(TB_MovimentaçãodeAtivos[[#This Row],[Data - Saída]]=TB_MovimentaçãodeAtivos[[#This Row],[Data]],"-",IFERROR(IF(DATEDIF(TB_MovimentaçãodeAtivos[[#This Row],[Data]],TB_MovimentaçãodeAtivos[[#This Row],[Data - Saída]],"y")=0,"",DATEDIF(TB_MovimentaçãodeAtivos[[#This Row],[Data]],TB_MovimentaçãodeAtivos[[#This Row],[Data - Saída]],"y")&" "&IF(DATEDIF(TB_MovimentaçãodeAtivos[[#This Row],[Data]],TB_MovimentaçãodeAtivos[[#This Row],[Data - Saída]],"y")>1,"anos","ano"))&IF(AND(DATEDIF(TB_MovimentaçãodeAtivos[[#This Row],[Data]],TB_MovimentaçãodeAtivos[[#This Row],[Data - Saída]],"y")>0,DATEDIF(TB_MovimentaçãodeAtivos[[#This Row],[Data]],TB_MovimentaçãodeAtivos[[#This Row],[Data - Saída]],"ym")>0),IF(DATEDIF(TB_MovimentaçãodeAtivos[[#This Row],[Data]],TB_MovimentaçãodeAtivos[[#This Row],[Data - Saída]],"md")>0,", "," e "),"")&IF(DATEDIF(TB_MovimentaçãodeAtivos[[#This Row],[Data]],TB_MovimentaçãodeAtivos[[#This Row],[Data - Saída]],"ym")=0,"",DATEDIF(TB_MovimentaçãodeAtivos[[#This Row],[Data]],TB_MovimentaçãodeAtivos[[#This Row],[Data - Saída]],"ym")&" "&IF(DATEDIF(TB_MovimentaçãodeAtivos[[#This Row],[Data]],TB_MovimentaçãodeAtivos[[#This Row],[Data - Saída]],"ym")>1,"meses","mês"))&IF(AND(OR(DATEDIF(TB_MovimentaçãodeAtivos[[#This Row],[Data]],TB_MovimentaçãodeAtivos[[#This Row],[Data - Saída]],"y")>0,DATEDIF(TB_MovimentaçãodeAtivos[[#This Row],[Data]],TB_MovimentaçãodeAtivos[[#This Row],[Data - Saída]],"ym")>0),DATEDIF(TB_MovimentaçãodeAtivos[[#This Row],[Data]],TB_MovimentaçãodeAtivos[[#This Row],[Data - Saída]],"md")>0)," e ","")&IF(DATEDIF(TB_MovimentaçãodeAtivos[[#This Row],[Data]],TB_MovimentaçãodeAtivos[[#This Row],[Data - Saída]],"md")=0,"",DATEDIF(TB_MovimentaçãodeAtivos[[#This Row],[Data]],TB_MovimentaçãodeAtivos[[#This Row],[Data - Saída]],"md")&" "&IF(DATEDIF(TB_MovimentaçãodeAtivos[[#This Row],[Data]],TB_MovimentaçãodeAtivos[[#This Row],[Data - Saída]],"md")>1,"dias","dia")),"-"))) -> -
B28: =IFERROR(INDEX(#REF!,SMALL(IF(((#REF!="Pago")*(#REF!=#REF!)*(#REF!=AnoReferencia_Matriz)),ROW(#REF!)-ROW(#REF!)),ROWS($1:8))),"") ->  | C28: 44091 | D28: NTCO2 | E28: C | F28: 200 | G28: 49 | H28: 2.9 | I28: =TB_MovimentaçãodeAtivos[[#This Row],[Qtde]]*TB_MovimentaçãodeAtivos[[#This Row],[Vlr Entrada]] -> 9800 | K28: =TB_MovimentaçãodeAtivos[[#This Row],[Vlr Entrada]]*1.05 -> 51.45 | L28: =TB_MovimentaçãodeAtivos[[#This Row],[Vlr Entrada]]*0.95 -> 46.55 | M28: 44094 | N28: 49.12 | P28: =TB_MovimentaçãodeAtivos[[#This Row],[Qtde]]*TB_MovimentaçãodeAtivos[[#This Row],[Valor - Saída]] -> 9824 | S28: =IF(OR(TB_MovimentaçãodeAtivos[[#This Row],[Data]]="",TB_MovimentaçãodeAtivos[[#This Row],[Data]]="-"),"-",IF(TB_MovimentaçãodeAtivos[[#This Row],[Data - Saída]]=TB_MovimentaçãodeAtivos[[#This Row],[Data]],"-",IFERROR(IF(DATEDIF(TB_MovimentaçãodeAtivos[[#This Row],[Data]],TB_MovimentaçãodeAtivos[[#This Row],[Data - Saída]],"y")=0,"",DATEDIF(TB_MovimentaçãodeAtivos[[#This Row],[Data]],TB_MovimentaçãodeAtivos[[#This Row],[Data - Saída]],"y")&" "&IF(DATEDIF(TB_MovimentaçãodeAtivos[[#This Row],[Data]],TB_MovimentaçãodeAtivos[[#This Row],[Data - Saída]],"y")>1,"anos","ano"))&IF(AND(DATEDIF(TB_MovimentaçãodeAtivos[[#This Row],[Data]],TB_MovimentaçãodeAtivos[[#This Row],[Data - Saída]],"y")>0,DATEDIF(TB_MovimentaçãodeAtivos[[#This Row],[Data]],TB_MovimentaçãodeAtivos[[#This Row],[Data - Saída]],"ym")>0),IF(DATEDIF(TB_MovimentaçãodeAtivos[[#This Row],[Data]],TB_MovimentaçãodeAtivos[[#This Row],[Data - Saída]],"md")>0,", "," e "),"")&IF(DATEDIF(TB_MovimentaçãodeAtivos[[#This Row],[Data]],TB_MovimentaçãodeAtivos[[#This Row],[Data - Saída]],"ym")=0,"",DATEDIF(TB_MovimentaçãodeAtivos[[#This Row],[Data]],TB_MovimentaçãodeAtivos[[#This Row],[Data - Saída]],"ym")&" "&IF(DATEDIF(TB_MovimentaçãodeAtivos[[#This Row],[Data]],TB_MovimentaçãodeAtivos[[#This Row],[Data - Saída]],"ym")>1,"meses","mês"))&IF(AND(OR(DATEDIF(TB_MovimentaçãodeAtivos[[#This Row],[Data]],TB_MovimentaçãodeAtivos[[#This Row],[Data - Saída]],"y")>0,DATEDIF(TB_MovimentaçãodeAtivos[[#This Row],[Data]],TB_MovimentaçãodeAtivos[[#This Row],[Data - Saída]],"ym")>0),DATEDIF(TB_MovimentaçãodeAtivos[[#This Row],[Data]],TB_MovimentaçãodeAtivos[[#This Row],[Data - Saída]],"md")>0)," e ","")&IF(DATEDIF(TB_MovimentaçãodeAtivos[[#This Row],[Data]],TB_MovimentaçãodeAtivos[[#This Row],[Data - Saída]],"md")=0,"",DATEDIF(TB_MovimentaçãodeAtivos[[#This Row],[Data]],TB_MovimentaçãodeAtivos[[#This Row],[Data - Saída]],"md")&" "&IF(DATEDIF(TB_MovimentaçãodeAtivos[[#This Row],[Data]],TB_MovimentaçãodeAtivos[[#This Row],[Data - Saída]],"md")>1,"dias","dia")),"-"))) -> 3 dias
B29: =IFERROR(INDEX(#REF!,SMALL(IF(((#REF!="Pago")*(#REF!=#REF!)*(#REF!=AnoReferencia_Matriz)),ROW(#REF!)-ROW(#REF!)),ROWS($1:8))),"") ->  | C29: 44084 | D29: NTCO2 | E29: V | F29: 100 | G29: 48.49 | H29: 2.9 | I29: =TB_MovimentaçãodeAtivos[[#This Row],[Qtde]]*TB_MovimentaçãodeAtivos[[#This Row],[Vlr Entrada]] -> 4849 | K29: =TB_MovimentaçãodeAtivos[[#This Row],[Vlr Entrada]]*1.05 -> 50.9145 | L29: =TB_MovimentaçãodeAtivos[[#This Row],[Vlr Entrada]]*0.95 -> 46.0655 | M29: 44088 | N29: 49.21 | P29: =TB_MovimentaçãodeAtivos[[#This Row],[Qtde]]*TB_MovimentaçãodeAtivos[[#This Row],[Valor - Saída]] -> 4921 | S29: =IF(OR(TB_MovimentaçãodeAtivos[[#This Row],[Data]]="",TB_MovimentaçãodeAtivos[[#This Row],[Data]]="-"),"-",IF(TB_MovimentaçãodeAtivos[[#This Row],[Data - Saída]]=TB_MovimentaçãodeAtivos[[#This Row],[Data]],"-",IFERROR(IF(DATEDIF(TB_MovimentaçãodeAtivos[[#This Row],[Data]],TB_MovimentaçãodeAtivos[[#This Row],[Data - Saída]],"y")=0,"",DATEDIF(TB_MovimentaçãodeAtivos[[#This Row],[Data]],TB_MovimentaçãodeAtivos[[#This Row],[Data - Saída]],"y")&" "&IF(DATEDIF(TB_MovimentaçãodeAtivos[[#This Row],[Data]],TB_MovimentaçãodeAtivos[[#This Row],[Data - Saída]],"y")>1,"anos","ano"))&IF(AND(DATEDIF(TB_MovimentaçãodeAtivos[[#This Row],[Data]],TB_MovimentaçãodeAtivos[[#This Row],[Data - Saída]],"y")>0,DATEDIF(TB_MovimentaçãodeAtivos[[#This Row],[Data]],TB_MovimentaçãodeAtivos[[#This Row],[Data - Saída]],"ym")>0),IF(DATEDIF(TB_MovimentaçãodeAtivos[[#This Row],[Data]],TB_MovimentaçãodeAtivos[[#This Row],[Data - Saída]],"md")>0,", "," e "),"")&IF(DATEDIF(TB_MovimentaçãodeAtivos[[#This Row],[Data]],TB_MovimentaçãodeAtivos[[#This Row],[Data - Saída]],"ym")=0,"",DATEDIF(TB_MovimentaçãodeAtivos[[#This Row],[Data]],TB_MovimentaçãodeAtivos[[#This Row],[Data - Saída]],"ym")&" "&IF(DATEDIF(TB_MovimentaçãodeAtivos[[#This Row],[Data]],TB_MovimentaçãodeAtivos[[#This Row],[Data - Saída]],"ym")>1,"meses","mês"))&IF(AND(OR(DATEDIF(TB_MovimentaçãodeAtivos[[#This Row],[Data]],TB_MovimentaçãodeAtivos[[#This Row],[Data - Saída]],"y")>0,DATEDIF(TB_MovimentaçãodeAtivos[[#This Row],[Data]],TB_MovimentaçãodeAtivos[[#This Row],[Data - Saída]],"ym")>0),DATEDIF(TB_MovimentaçãodeAtivos[[#This Row],[Data]],TB_MovimentaçãodeAtivos[[#This Row],[Data - Saída]],"md")>0)," e ","")&IF(DATEDIF(TB_MovimentaçãodeAtivos[[#This Row],[Data]],TB_MovimentaçãodeAtivos[[#This Row],[Data - Saída]],"md")=0,"",DATEDIF(TB_MovimentaçãodeAtivos[[#This Row],[Data]],TB_MovimentaçãodeAtivos[[#This Row],[Data - Saída]],"md")&" "&IF(DATEDIF(TB_MovimentaçãodeAtivos[[#This Row],[Data]],TB_MovimentaçãodeAtivos[[#This Row],[Data - Saída]],"md")>1,"dias","dia")),"-"))) -> 4 dias
B30: =IFERROR(INDEX(#REF!,SMALL(IF(((#REF!="Pago")*(#REF!=#REF!)*(#REF!=AnoReferencia_Matriz)),ROW(#REF!)-ROW(#REF!)),ROWS($1:8))),"") ->  | C30: 44200 | D30: CIEL3 | E30: C | F30: 600 | G30: 4.04 | I30: =TB_MovimentaçãodeAtivos[[#This Row],[Qtde]]*TB_MovimentaçãodeAtivos[[#This Row],[Vlr Entrada]] -> 2424 | K30: =TB_MovimentaçãodeAtivos[[#This Row],[Vlr Entrada]]*1.05 -> 4.242 | L30: =TB_MovimentaçãodeAtivos[[#This Row],[Vlr Entrada]]*0.95 -> 3.838 | P30: =TB_MovimentaçãodeAtivos[[#This Row],[Qtde]]*TB_MovimentaçãodeAtivos[[#This Row],[Valor - Saída]] -> 0 | S30: =IF(OR(TB_MovimentaçãodeAtivos[[#This Row],[Data]]="",TB_MovimentaçãodeAtivos[[#This Row],[Data]]="-"),"-",IF(TB_MovimentaçãodeAtivos[[#This Row],[Data - Saída]]=TB_MovimentaçãodeAtivos[[#This Row],[Data]],"-",IFERROR(IF(DATEDIF(TB_MovimentaçãodeAtivos[[#This Row],[Data]],TB_MovimentaçãodeAtivos[[#This Row],[Data - Saída]],"y")=0,"",DATEDIF(TB_MovimentaçãodeAtivos[[#This Row],[Data]],TB_MovimentaçãodeAtivos[[#This Row],[Data - Saída]],"y")&" "&IF(DATEDIF(TB_MovimentaçãodeAtivos[[#This Row],[Data]],TB_MovimentaçãodeAtivos[[#This Row],[Data - Saída]],"y")>1,"anos","ano"))&IF(AND(DATEDIF(TB_MovimentaçãodeAtivos[[#This Row],[Data]],TB_MovimentaçãodeAtivos[[#This Row],[Data - Saída]],"y")>0,DATEDIF(TB_MovimentaçãodeAtivos[[#This Row],[Data]],TB_MovimentaçãodeAtivos[[#This Row],[Data - Saída]],"ym")>0),IF(DATEDIF(TB_MovimentaçãodeAtivos[[#This Row],[Data]],TB_MovimentaçãodeAtivos[[#This Row],[Data - Saída]],"md")>0,", "," e "),"")&IF(DATEDIF(TB_MovimentaçãodeAtivos[[#This Row],[Data]],TB_MovimentaçãodeAtivos[[#This Row],[Data - Saída]],"ym")=0,"",DATEDIF(TB_MovimentaçãodeAtivos[[#This Row],[Data]],TB_MovimentaçãodeAtivos[[#This Row],[Data - Saída]],"ym")&" "&IF(DATEDIF(TB_MovimentaçãodeAtivos[[#This Row],[Data]],TB_MovimentaçãodeAtivos[[#This Row],[Data - Saída]],"ym")>1,"meses","mês"))&IF(AND(OR(DATEDIF(TB_MovimentaçãodeAtivos[[#This Row],[Data]],TB_MovimentaçãodeAtivos[[#This Row],[Data - Saída]],"y")>0,DATEDIF(TB_MovimentaçãodeAtivos[[#This Row],[Data]],TB_MovimentaçãodeAtivos[[#This Row],[Data - Saída]],"ym")>0),DATEDIF(TB_MovimentaçãodeAtivos[[#This Row],[Data]],TB_MovimentaçãodeAtivos[[#This Row],[Data - Saída]],"md")>0)," e ","")&IF(DATEDIF(TB_MovimentaçãodeAtivos[[#This Row],[Data]],TB_MovimentaçãodeAtivos[[#This Row],[Data - Saída]],"md")=0,"",DATEDIF(TB_MovimentaçãodeAtivos[[#This Row],[Data]],TB_MovimentaçãodeAtivos[[#This Row],[Data - Saída]],"md")&" "&IF(DATEDIF(TB_MovimentaçãodeAtivos[[#This Row],[Data]],TB_MovimentaçãodeAtivos[[#This Row],[Data - Saída]],"md")>1,"dias","dia")),"-"))) -> -
B31: =IFERROR(INDEX(#REF!,SMALL(IF(((#REF!="Pago")*(#REF!=#REF!)*(#REF!=AnoReferencia_Matriz)),ROW(#REF!)-ROW(#REF!)),ROWS($1:8))),"") ->  | C31: 44168 | D31: VIVA3 | E31: C | F31: 300 | G31: 25.9 | H31: 2.9 | I31: =TB_MovimentaçãodeAtivos[[#This Row],[Qtde]]*TB_MovimentaçãodeAtivos[[#This Row],[Vlr Entrada]] -> 7770 | K31: =TB_MovimentaçãodeAtivos[[#This Row],[Vlr Entrada]]*1.05 -> 27.195 | L31: =TB_MovimentaçãodeAtivos[[#This Row],[Vlr Entrada]]*0.95 -> 24.605 | P31: =TB_MovimentaçãodeAtivos[[#This Row],[Qtde]]*TB_MovimentaçãodeAtivos[[#This Row],[Valor - Saída]] -> 0 | S31: =IF(OR(TB_MovimentaçãodeAtivos[[#This Row],[Data]]="",TB_MovimentaçãodeAtivos[[#This Row],[Data]]="-"),"-",IF(TB_MovimentaçãodeAtivos[[#This Row],[Data - Saída]]=TB_MovimentaçãodeAtivos[[#This Row],[Data]],"-",IFERROR(IF(DATEDIF(TB_MovimentaçãodeAtivos[[#This Row],[Data]],TB_MovimentaçãodeAtivos[[#This Row],[Data - Saída]],"y")=0,"",DATEDIF(TB_MovimentaçãodeAtivos[[#This Row],[Data]],TB_MovimentaçãodeAtivos[[#This Row],[Data - Saída]],"y")&" "&IF(DATEDIF(TB_MovimentaçãodeAtivos[[#This Row],[Data]],TB_MovimentaçãodeAtivos[[#This Row],[Data - Saída]],"y")>1,"anos","ano"))&IF(AND(DATEDIF(TB_MovimentaçãodeAtivos[[#This Row],[Data]],TB_MovimentaçãodeAtivos[[#This Row],[Data - Saída]],"y")>0,DATEDIF(TB_MovimentaçãodeAtivos[[#This Row],[Data]],TB_MovimentaçãodeAtivos[[#This Row],[Data - Saída]],"ym")>0),IF(DATEDIF(TB_MovimentaçãodeAtivos[[#This Row],[Data]],TB_MovimentaçãodeAtivos[[#This Row],[Data - Saída]],"md")>0,", "," e "),"")&IF(DATEDIF(TB_MovimentaçãodeAtivos[[#This Row],[Data]],TB_MovimentaçãodeAtivos[[#This Row],[Data - Saída]],"ym")=0,"",DATEDIF(TB_MovimentaçãodeAtivos[[#This Row],[Data]],TB_MovimentaçãodeAtivos[[#This Row],[Data - Saída]],"ym")&" "&IF(DATEDIF(TB_MovimentaçãodeAtivos[[#This Row],[Data]],TB_MovimentaçãodeAtivos[[#This Row],[Data - Saída]],"ym")>1,"meses","mês"))&IF(AND(OR(DATEDIF(TB_MovimentaçãodeAtivos[[#This Row],[Data]],TB_MovimentaçãodeAtivos[[#This Row],[Data - Saída]],"y")>0,DATEDIF(TB_MovimentaçãodeAtivos[[#This Row],[Data]],TB_MovimentaçãodeAtivos[[#This Row],[Data - Saída]],"ym")>0),DATEDIF(TB_MovimentaçãodeAtivos[[#This Row],[Data]],TB_MovimentaçãodeAtivos[[#This Row],[Data - Saída]],"md")>0)," e ","")&IF(DATEDIF(TB_MovimentaçãodeAtivos[[#This Row],[Data]],TB_MovimentaçãodeAtivos[[#This Row],[Data - Saída]],"md")=0,"",DATEDIF(TB_MovimentaçãodeAtivos[[#This Row],[Data]],TB_MovimentaçãodeAtivos[[#This Row],[Data - Saída]],"md")&" "&IF(DATEDIF(TB_MovimentaçãodeAtivos[[#This Row],[Data]],TB_MovimentaçãodeAtivos[[#This Row],[Data - Saída]],"md")>1,"dias","dia")),"-"))) -> -
